fUST/lending_fUST_20250530
["ID","MTS","AMOUNT","RATE_DAILY","PERIOD"]
[363031071,1748556635873,-430.0,0.00019178,2]
[363031072,1748556635882,-430.0,0.00019178,2]
[363031073,1748556635891,-430.0,0.00019178,2]
[363031074,1748556635900,-430.0,0.00019178,2]
[363031075,1748556635909,-430.0,0.00019178,2]
[363031076,1748556635918,-430.0,0.00019178,2]
[363031077,1748556635927,-450.0,0.00019178,2]
[363031078,1748556635935,-257.58301212,0.00019178,2]
[363031079,1748556635944,-430.0,0.00019178,2]
[363031080,1748556635953,-585.92,0.00019178,2]
[363031081,1748556635961,-430.0,0.00019178,2]
[363031082,1748556636065,-3697.22,0.00019178,2]
[363031083,1748556636086,-430.0,0.00019178,2]
[363031084,1748556636095,-430.0,0.00019178,2]
[363031085,1748556636104,-402.66886999,0.00019178,2]
[363031086,1748556636113,-430.0,0.00019178,2]
[363031087,1748556636121,-430.0,0.00019178,2]
[363031088,1748556636129,-4101.92,0.00019178,2]
[363031089,1748556636140,-995.18,0.00019178,2]
[363031090,1748556636151,-430.0,0.00019178,2]
[363031091,1748556636161,-430.0,0.00019178,2]
[363031092,1748556636170,-430.0,0.00019178,2]
[363031093,1748556636180,-3261.31,0.00019178,2]
[363031094,1748556636190,-430.0,0.00019178,2]
[363031095,1748556636201,-430.0,0.00019178,2]
[363031096,1748556636210,-1208.59,0.00019178,2]
[363031097,1748556636221,-997.46,0.00019178,2]
[363031098,1748556636231,-430.0,0.00019178,2]
[363031099,1748556636242,-959.85,0.00019178,2]
[363031100,1748556636253,-430.0,0.00019178,2]
[363031101,1748556636263,-683.43,0.00019178,2]
[363031102,1748556636272,-430.0,0.00019178,2]
[363031103,1748556636281,-430.0,0.00019178,2]
[363031104,1748556636291,-430.0,0.00019178,2]
[363031105,1748556636300,-430.0,0.00019178,2]
[363031106,1748556636310,-430.0,0.00019178,2]
[363031107,1748556636319,-430.0,0.00019178,2]
[363031108,1748556636328,-430.0,0.00019178,2]
[363031109,1748556636338,-430.0,0.00019178,2]
[363031110,1748556636347,-430.0,0.00019178,2]
[363031111,1748556636357,-430.0,0.00019178,2]
[363031112,1748556636366,-430.0,0.00019178,2]
[363031113,1748556636375,-430.0,0.00019178,2]
[363031114,1748556636384,-430.0,0.00019178,2]
[363031115,1748556636394,-174.96345161,0.00019352,2]
[363031116,1748556636404,-500.0,0.00019451,2]
[363031117,1748556636413,-500.0,0.00019451,2]
[363031118,1748556636424,-500.0,0.00019451,2]
[363031119,1748556636434,-500.0,0.00019451,2]
[363031120,1748556636443,-500.0,0.00019451,2]
[363031121,1748556636453,-500.0,0.00019451,2]
[363031122,1748556636463,-430.0,0.00019452,2]
[363031123,1748556636472,-430.0,0.00019452,2]
[363031124,1748556636481,-368.14577533,0.00019452,2]
[363031125,1748556636490,-430.0,0.00019452,2]
[363031126,1748556636501,-430.0,0.00019452,2]
[363031127,1748556636510,-519.10495198,0.00019452,2]
[363031128,1748556636519,-430.0,0.00019452,2]
[363031129,1748556636529,-430.0,0.00019452,2]
[363031130,1748556636538,-430.0,0.00019452,2]
[363031131,1748556636548,-430.0,0.00019452,2]
[363031132,1748556636559,-470.0,0.00019452,2]
[363031133,1748556636568,-430.0,0.00019452,2]
[363031134,1748556636577,-430.0,0.00019452,2]
[363031135,1748556636587,-430.0,0.00019452,2]
[363031136,1748556636597,-400.0,0.00019452,2]
[363031137,1748556636606,-430.0,0.00019452,2]
[363031138,1748556636615,-430.0,0.00019452,2]
[363031139,1748556636625,-430.0,0.00019452,2]
[363031140,1748556636634,-430.0,0.00019452,2]
[363031141,1748556636643,-430.0,0.00019452,2]
[363031142,1748556636652,-430.0,0.00019452,2]
[363031143,1748556636661,-430.0,0.00019452,2]
[363031144,1748556636671,-349.6174774,0.00019452,2]
[363031145,1748556636680,-430.0,0.00019452,2]
[363031146,1748556636689,-430.0,0.00019452,2]
[363031147,1748556636698,-430.0,0.00019452,2]
[363031148,1748556636707,-430.0,0.00019452,2]
[363031149,1748556636716,-450.0,0.00019452,2]
[363031150,1748556636725,-430.0,0.00019452,2]
[363031151,1748556636733,-524.28805565,0.00019452,2]
[363031152,1748556636742,-430.0,0.00019452,2]
[363031153,1748556636752,-376.46426407,0.00019452,2]
[363031154,1748556636761,-430.0,0.00019452,2]
[363031155,1748556636769,-430.0,0.00019452,2]
[363031156,1748556636779,-420.0,0.00019452,2]
[363031157,1748556636788,-1705.92,0.00019452,2]
[363031158,1748556636797,-430.0,0.00019452,2]
[363031159,1748556636806,-430.0,0.00019452,2]
[363031160,1748556636815,-336.39791126,0.00019452,2]
[363031161,1748556636824,-430.0,0.00019452,2]
[363031162,1748556636833,-430.0,0.00019452,2]
[363031163,1748556636842,-901.59,0.00019452,2]
[363031164,1748556636850,-430.0,0.00019452,2]
[363031165,1748556636859,-430.0,0.00019452,2]
[363031166,1748556636868,-430.0,0.00019452,2]
[363031167,1748556636877,-551.92,0.00019452,2]
[363031168,1748556636885,-430.0,0.00019452,2]
[363031169,1748556636894,-499.92776016,0.00019452,2]
[363031170,1748556636903,-430.0,0.00019452,2]
[363031171,1748556636912,-430.0,0.00019452,2]
[363031172,1748556636920,-430.0,0.00019452,2]
[363031173,1748556636930,-430.0,0.00019452,2]
[363031174,1748556636939,-1174.86,0.00019452,2]
[363031175,1748556636947,-430.0,0.00019452,2]
[363031176,1748556636956,-430.0,0.00019452,2]
[363031177,1748556636965,-430.0,0.00019452,2]
[363031178,1748556636974,-420.0,0.00019452,2]
[363031179,1748556636983,-574.61,0.00019452,2]
[363031180,1748556636992,-430.0,0.00019452,2]
[363031181,1748556637001,-430.0,0.00019452,2]
[363031182,1748556637010,-430.0,0.00019452,2]
[363031183,1748556637019,-430.0,0.00019452,2]
[363031184,1748556637028,-430.0,0.00019452,2]
[363031185,1748556637037,-444.16,0.00019452,2]
[363031186,1748556637046,-442.82451361,0.00019452,2]
[363031187,1748556637055,-430.0,0.00019452,2]
[363031188,1748556637063,-430.0,0.00019452,2]
[363031189,1748556637073,-400.0,0.00019452,2]
[363031190,1748556637082,-430.0,0.00019452,2]
[363031191,1748556637091,-430.0,0.00019452,2]
[363031192,1748556637100,-430.0,0.00019452,2]
[363031193,1748556637108,-1091.61,0.00019452,2]
[363031194,1748556637118,-430.0,0.00019452,2]
[363031195,1748556637127,-430.0,0.00019452,2]
[363031196,1748556637135,-430.0,0.00019452,2]
[363031197,1748556637148,-430.0,0.00019452,2]
[363031198,1748556637157,-430.0,0.00019452,2]
[363031199,1748556637166,-430.0,0.00019452,2]
[363031200,1748556637175,-430.0,0.00019452,2]
[363031201,1748556637183,-430.0,0.00019452,2]
[363031202,1748556637193,-430.0,0.00019452,2]
[363031203,1748556637201,-530.0,0.00019452,2]
[363031204,1748556637210,-216.95261598,0.00019452,2]
[363031205,1748556637219,-180.0,0.00019452,2]
[363031206,1748556637228,-964.44,0.00019452,2]
[363031207,1748556637237,-430.0,0.00019452,2]
[363031208,1748556637246,-430.0,0.00019452,2]
[363031209,1748556637255,-430.0,0.00019452,2]
[363031210,1748556637264,-430.0,0.00019452,2]
[363031211,1748556637272,-561.09,0.00019452,2]
[363031212,1748556637281,-2447.72,0.00019452,2]
[363031213,1748556637290,-430.0,0.00019452,2]
[363031214,1748556637299,-430.0,0.00019452,2]
[363031215,1748556637308,-571.85208153,0.00019452,2]
[363031216,1748556637319,-430.0,0.00019452,2]
[363031217,1748556637328,-430.0,0.00019452,2]
[363031218,1748556637337,-430.0,0.00019452,2]
[363031219,1748556637346,-430.0,0.00019452,2]
[363031220,1748556637359,-430.0,0.00019452,2]
[363031221,1748556637368,-430.0,0.00019452,2]
[363031222,1748556637377,-430.0,0.00019452,2]
[363031223,1748556637387,-332.18273221,0.00019452,2]
[363031224,1748556637397,-430.0,0.00019452,2]
[363031225,1748556637406,-633.51,0.00019452,2]
[363031226,1748556637416,-430.0,0.00019452,2]
[363031227,1748556637425,-430.0,0.00019452,2]
[363031228,1748556637434,-430.0,0.00019452,2]
[363031230,1748556637444,-430.0,0.00019452,2]
[363031231,1748556637453,-430.0,0.00019452,2]
[363031232,1748556637463,-294.1140685,0.00019452,2]
[363031233,1748556637472,-430.0,0.00019452,2]
[363031234,1748556637481,-431.77605909,0.00019452,2]
[363031235,1748556637491,-430.0,0.00019452,2]
[363031236,1748556637500,-801.7,0.00019452,2]
[363031237,1748556637509,-430.0,0.00019452,2]
[363031238,1748556637519,-430.0,0.00019452,2]
[363031239,1748556637528,-430.0,0.00019452,2]
[363031240,1748556637537,-430.0,0.00019452,2]
[363031241,1748556637546,-430.0,0.00019452,2]
[363031242,1748556637556,-797.63,0.00019452,2]
[363031243,1748556637565,-1112.73,0.00019452,2]
[363031244,1748556637574,-430.0,0.00019452,2]
[363031245,1748556637583,-6436.32,0.00019452,2]
[363031246,1748556637592,-2898.16,0.00019452,2]
[363031247,1748556637602,-430.0,0.00019452,2]
[363031248,1748556637611,-430.0,0.00019452,2]
[363031249,1748556637621,-430.0,0.00019452,2]
[363031250,1748556637630,-430.0,0.00019452,2]
[363031251,1748556637640,-512.23,0.00019452,2]
[363031252,1748556637649,-430.0,0.00019452,2]
[363031253,1748556637660,-1195.58,0.00019452,2]
[363031254,1748556637669,-430.0,0.00019452,2]
[363031255,1748556637679,-430.0,0.00019452,2]
[363031256,1748556637688,-960.67,0.00019452,2]
[363031257,1748556637697,-852.2,0.00019452,2]
[363031258,1748556637707,-430.0,0.00019452,2]
[363031259,1748556637716,-430.0,0.00019452,2]
[363031260,1748556637726,-490.0,0.00019452,2]
[363031261,1748556637735,-5639.66,0.00019452,2]
[363031262,1748556637744,-470.0,0.00019452,2]
[363031263,1748556637755,-430.0,0.00019452,2]
[363031264,1748556637764,-430.0,0.00019452,2]
[363031265,1748556637773,-1009.95,0.00019452,2]
[363031266,1748556637783,-632.99,0.00019452,2]
[363031267,1748556637792,-8117.07,0.00019452,2]
[363031268,1748556637801,-454.17,0.00019452,2]
[363031269,1748556637810,-430.0,0.00019452,2]
[363031270,1748556637819,-452.41,0.00019452,2]
[363031271,1748556637829,-430.0,0.00019452,2]
[363031272,1748556637839,-430.0,0.00019452,2]
[363031273,1748556637848,-2481.17,0.00019452,2]
[363031274,1748556637858,-795.07,0.00019452,2]
[363031275,1748556637867,-430.0,0.00019452,2]
[363031276,1748556637877,-430.0,0.00019452,2]
[363031277,1748556637886,-430.0,0.00019452,2]
[363031278,1748556637896,-430.0,0.00019452,2]
[363031279,1748556637905,-1983.74489347,0.00019452,2]
[363031280,1748556637923,-2599.01510653,0.00019452,2]
[363031281,1748556637932,-360.0,0.00019452,2]
[363031282,1748556637942,-430.0,0.00019452,2]
[363031283,1748556638043,-430.0,0.00019452,2]
[363031284,1748556638053,-1104.94,0.00019452,2]
[363031285,1748556638064,-430.0,0.00019452,2]
[363031286,1748556638073,-260.0,0.00019452,2]
[363031287,1748556638083,-488.83997543,0.00019452,2]
[363031288,1748556638093,-430.0,0.00019452,2]
[363031289,1748556638103,-430.0,0.00019452,2]
[363031290,1748556638112,-430.0,0.00019452,2]
[363031291,1748556638122,-430.0,0.00019452,2]
[363031292,1748556638131,-430.0,0.00019452,2]
[363031293,1748556638142,-134.57374245,0.00019452,2]
[363031294,1748556638156,-295.42625755,0.00019452,2]
[363031295,1748556638166,-420.0,0.00019452,2]
[363031296,1748556638175,-1081.58,0.00019452,2]
[363031297,1748556638184,-2052.87,0.00019452,2]
[363031298,1748556638194,-350.63,0.00019452,2]
[363031299,1748556638203,-2823.79,0.00019452,2]
[363031300,1748556638212,-430.0,0.00019452,2]
[363031301,1748556638224,-430.0,0.00019452,2]
[363031302,1748556638233,-430.0,0.00019452,2]
[363031303,1748556638243,-3349.55,0.00019452,2]
[363031304,1748556638253,-533.09,0.00019452,2]
[363031305,1748556638263,-430.0,0.00019452,2]
[363031306,1748556638272,-430.0,0.00019452,2]
[363031307,1748556638281,-430.0,0.00019452,2]
[363031308,1748556638291,-430.0,0.00019452,2]
[363031309,1748556638300,-202.69920574,0.00019452,2]
[363031310,1748556638309,-340.0,0.00019452,2]
[363031311,1748556638319,-248.7747718,0.00019452,2]
[363031312,1748556638329,-430.0,0.00019452,2]
[363031313,1748556638338,-430.0,0.00019452,2]
[363031314,1748556638347,-430.0,0.00019452,2]
[363031315,1748556638356,-430.0,0.00019452,2]
[363031316,1748556638366,-430.0,0.00019452,2]
[363031317,1748556638375,-430.0,0.00019452,2]
[363031318,1748556638384,-430.0,0.00019452,2]
[363031319,1748556638393,-430.0,0.00019452,2]
[363031320,1748556638403,-430.0,0.00019452,2]
[363031321,1748556638412,-2060.41,0.00019452,2]
[363031322,1748556638421,-430.0,0.00019452,2]
[363031323,1748556638431,-430.0,0.00019452,2]
[363031324,1748556638440,-430.0,0.00019452,2]
[363031325,1748556638449,-201.49976491,0.00019452,2]
[363031326,1748556638461,-2897.63428113,0.00019452,2]
[363031327,1748556638473,-369.70285496,0.00019452,2]
[363031328,1748556638483,-265.27490865,0.00019452,2]
[363031329,1748556638499,-6824.20819035,0.00019452,2]
[363031330,1748556638508,-420.0,0.00019452,2]
[363031331,1748556638517,-430.0,0.00019452,2]
[363031332,1748556638527,-1145.35,0.00019452,2]
[363031333,1748556638544,-430.0,0.00019452,2]
[363031334,1748556638558,-400.0,0.00019452,2]
[363031335,1748556638569,-2074.11,0.00019452,2]
[363031336,1748556638579,-430.0,0.00019452,2]
[363031337,1748556638589,-445.52632558,0.00019452,2]
[363031338,1748556638600,-430.0,0.00019452,2]
[363031339,1748556638610,-5225.97,0.00019452,2]
[363031340,1748556638620,-430.0,0.00019452,2]
[363031341,1748556638630,-430.0,0.00019452,2]
[363031342,1748556638640,-500.0,0.00019452,2]
[363031343,1748556638654,-463.40293274,0.00019452,2]
[363031344,1748556638664,-2140.11,0.00019452,2]
[363031345,1748556638674,-430.0,0.00019452,2]
[363031346,1748556638683,-430.0,0.00019452,2]
[363031347,1748556638693,-649.73,0.00019452,2]
[363031348,1748556638702,-430.0,0.00019452,2]
[363031349,1748556638712,-430.0,0.00019452,2]
[363031350,1748556638722,-430.0,0.00019452,2]
[363031351,1748556638733,-430.0,0.00019452,2]
[363031352,1748556638742,-430.0,0.00019452,2]
[363031353,1748556638753,-430.0,0.00019452,2]
[363031354,1748556638763,-430.0,0.00019452,2]
[363031355,1748556638772,-2100.01,0.00019452,2]
[363031356,1748556638782,-430.0,0.00019452,2]
[363031357,1748556638795,-6991.29,0.00019452,2]
[363031358,1748556638805,-430.0,0.00019452,2]
[363031359,1748556638815,-370.54637559,0.00019452,2]
[363031360,1748556638825,-470.9934918,0.00019452,2]
[363031361,1748556638834,-430.0,0.00019452,2]
[363031362,1748556638844,-492.12093761,0.00019452,2]
[363031363,1748556638853,-510.2,0.00019452,2]
[363031364,1748556638863,-350.0,0.00019452,2]
[363031365,1748556638873,-430.0,0.00019452,2]
[363031366,1748556638882,-400.54433843,0.00019452,2]
[363031367,1748556638892,-430.0,0.00019452,2]
[363031368,1748556638902,-430.0,0.00019452,2]
[363031369,1748556638911,-2407.88,0.00019452,2]
[363031370,1748556638921,-442.75,0.00019452,2]
[363031371,1748556638931,-430.0,0.00019452,2]
[363031372,1748556638941,-528.92,0.00019452,2]
[363031373,1748556638950,-752.26,0.00019452,2]
[363031374,1748556638961,-430.0,0.00019452,2]
[363031375,1748556638970,-430.0,0.00019452,2]
[363031376,1748556638980,-450.0,0.00019452,2]
[363031377,1748556638989,-430.0,0.00019452,2]
[363031378,1748556639000,-4103.81,0.00019452,2]
[363031379,1748556639010,-657.44,0.00019452,2]
[363031380,1748556639019,-430.0,0.00019452,2]
[363031381,1748556639029,-430.0,0.00019452,2]
[363031382,1748556639040,-1941.04,0.00019452,2]
[363031383,1748556639049,-430.0,0.00019452,2]
[363031384,1748556639059,-300.0,0.00019452,2]
[363031385,1748556639068,-430.0,0.00019452,2]
[363031386,1748556639078,-430.0,0.00019452,2]
[363031387,1748556639087,-430.0,0.00019452,2]
[363031388,1748556639096,-490.0,0.00019452,2]
[363031389,1748556639106,-430.0,0.00019452,2]
[363031390,1748556639115,-430.0,0.00019452,2]
[363031391,1748556639125,-672.67,0.00019452,2]
[363031392,1748556639135,-430.0,0.00019452,2]
[363031393,1748556639145,-430.0,0.00019452,2]
[363031394,1748556639155,-400.0,0.00019452,2]
[363031395,1748556639164,-430.0,0.00019452,2]
[363031396,1748556639173,-430.0,0.00019452,2]
[363031399,1748556639183,-430.0,0.00019452,2]
[363031400,1748556639193,-430.0,0.00019452,2]
[363031401,1748556639202,-585.92,0.00019452,2]
[363031402,1748556639212,-258.52086524,0.00019452,2]
[363031403,1748556639222,-3697.22,0.00019452,2]
[363031404,1748556639232,-430.0,0.00019452,2]
[363031405,1748556639242,-450.0,0.00019452,2]
[363031406,1748556639253,-430.0,0.00019452,2]
[363031407,1748556639262,-4101.92,0.00019452,2]
[363031408,1748556639272,-995.18,0.00019452,2]
[363031409,1748556639281,-176.96821056,0.00019452,2]
[363031410,1748556639290,-450.0,0.00019452,2]
[363031411,1748556639300,-3261.31,0.00019452,2]
[363031412,1748556639309,-400.0,0.00019452,2]
[363031413,1748556639319,-421.44172793,0.00019452,2]
[363031414,1748556639329,-1208.59,0.00019452,2]
[363031415,1748556639339,-997.46,0.00019452,2]
[363031416,1748556639349,-430.0,0.00019452,2]
[363031417,1748556639358,-959.85,0.00019452,2]
[363031418,1748556639368,-430.0,0.00019452,2]
[363031419,1748556639377,-683.43,0.00019452,2]
[363031420,1748556639387,-430.0,0.00019452,2]
[363031421,1748556639396,-421.89269053,0.00019452,2]
[363031422,1748556639406,-430.0,0.00019452,2]
[363031423,1748556639415,-430.0,0.00019452,2]
[363031424,1748556639425,-430.0,0.00019452,2]
[363031425,1748556639434,-430.0,0.00019452,2]
[363031426,1748556639444,-430.0,0.00019452,2]
[363031427,1748556639453,-430.0,0.00019452,2]
[363031428,1748556639462,-430.0,0.00019452,2]
[363031429,1748556639472,-371.4387525,0.00019473,2]
[363031430,1748556639481,-600.0,0.00019473,2]
[363031431,1748556639490,-500.0,0.00019725,2]
[363031432,1748556639500,-534.07313543,0.00019725,2]
[363031433,1748556639509,-430.0,0.00019726,2]
[363031434,1748556639519,-430.0,0.00019726,2]
[363031435,1748556639528,-430.0,0.00019726,2]
[363031436,1748556639538,-430.0,0.00019726,2]
[363031437,1748556639547,-430.0,0.00019726,2]
[363031438,1748556639557,-430.0,0.00019726,2]
[363031439,1748556639567,-500.51639886,0.00019726,2]
[363031440,1748556639576,-430.0,0.00019726,2]
[363031441,1748556639585,-400.0,0.00019726,2]
[363031442,1748556639595,-430.0,0.00019726,2]
[363031444,1748556639604,-400.0,0.00019726,2]
[363031446,1748556639613,-412.74734466,0.00019726,2]
[363031448,1748556639622,-430.0,0.00019726,2]
[363031449,1748556639631,-430.0,0.00019726,2]
[363031451,1748556639641,-430.0,0.00019726,2]
[363031452,1748556639650,-430.0,0.00019726,2]
[363031453,1748556639659,-430.0,0.00019726,2]
[363031454,1748556639668,-348.99525934,0.00019726,2]
[363031455,1748556639678,-430.0,0.00019726,2]
[363031456,1748556639687,-430.0,0.00019726,2]
[363031457,1748556639696,-430.0,0.00019726,2]
[363031458,1748556639705,-169.50470734,0.00019726,2]
[363031459,1748556639715,-1705.92,0.00019726,2]
[363031461,1748556639724,-430.0,0.00019726,2]
[363031463,1748556639734,-430.0,0.00019726,2]
[363031465,1748556639743,-430.0,0.00019726,2]
[363031467,1748556639754,-901.59,0.00019726,2]
[363031469,1748556639764,-430.0,0.00019726,2]
[363031471,1748556639774,-430.0,0.00019726,2]
[363031473,1748556639783,-361.72247428,0.00019726,2]
[363031475,1748556639793,-551.92,0.00019726,2]
[363031477,1748556639802,-464.87,0.00019726,2]
[363031479,1748556639811,-450.0,0.00019726,2]
[363031481,1748556639820,-161.55353552,0.00019726,2]
[363031493,1748556639829,-430.0,0.00019726,2]
[363031495,1748556639944,-1174.86,0.00019726,2]
[363031497,1748556639954,-430.0,0.00019726,2]
[363031499,1748556639964,-430.0,0.00019726,2]
[363031501,1748556639973,-574.61,0.00019726,2]
[363031502,1748556639983,-430.0,0.00019726,2]
[363031504,1748556639992,-430.0,0.00019726,2]
[363031506,1748556640002,-430.0,0.00019726,2]
[363031507,1748556640011,-382.69,0.00019726,2]
[363031509,1748556640020,-430.0,0.00019726,2]
[363031511,1748556640030,-444.16,0.00019726,2]
[363031513,1748556640039,-430.0,0.00019726,2]
[363031515,1748556640049,-493.1,0.00019726,2]
[363031517,1748556640059,-430.0,0.00019726,2]
[363031519,1748556640070,-430.0,0.00019726,2]
[363031521,1748556640080,-430.0,0.00019726,2]
[363031523,1748556640090,-1091.61,0.00019726,2]
[363031525,1748556640099,-430.0,0.00019726,2]
[363031527,1748556640108,-430.0,0.00019726,2]
[363031529,1748556640117,-430.0,0.00019726,2]
[363031531,1748556640127,-430.0,0.00019726,2]
[363031532,1748556640136,-430.0,0.00019726,2]
[363031533,1748556640147,-450.0,0.00019726,2]
[363031534,1748556640156,-964.44,0.00019726,2]
[363031536,1748556640165,-430.0,0.00019726,2]
[363031538,1748556640175,-430.0,0.00019726,2]
[363031540,1748556640183,-561.09,0.00019726,2]
[363031542,1748556640194,-2447.72,0.00019726,2]
[363031544,1748556640203,-430.0,0.00019726,2]
[363031546,1748556640212,-430.0,0.00019726,2]
[363031548,1748556640222,-430.0,0.00019726,2]
[363031550,1748556640233,-430.0,0.00019726,2]
[363031552,1748556640242,-430.0,0.00019726,2]
[363031554,1748556640252,-430.0,0.00019726,2]
[363031556,1748556640261,-370.0,0.00019726,2]
[363031558,1748556640270,-633.51,0.00019726,2]
[363031560,1748556640279,-201.86901151,0.00019726,2]
[363031562,1748556640289,-430.0,0.00019726,2]
[363031564,1748556640298,-430.0,0.00019726,2]
[363031566,1748556640307,-430.0,0.00019726,2]
[363031568,1748556640316,-430.0,0.00019726,2]
[363031570,1748556640325,-470.0,0.00019726,2]
[363031572,1748556640335,-801.7,0.00019726,2]
[363031574,1748556640344,-430.0,0.00019726,2]
[363031576,1748556640353,-430.0,0.00019726,2]
[363031578,1748556640362,-430.0,0.00019726,2]
[363031580,1748556640371,-797.63,0.00019726,2]
[363031582,1748556640380,-1112.73,0.00019726,2]
[363031584,1748556640390,-430.0,0.00019726,2]
[363031586,1748556640399,-6436.32,0.00019726,2]
[363031588,1748556640408,-2898.16,0.00019726,2]
[363031590,1748556640418,-430.0,0.00019726,2]
[363031592,1748556640427,-430.0,0.00019726,2]
[363031594,1748556640436,-430.0,0.00019726,2]
[363031596,1748556640446,-430.0,0.00019726,2]
[363031598,1748556640455,-512.23,0.00019726,2]
[363031600,1748556640464,-411.84071174,0.00019726,2]
[363031601,1748556640473,-1195.58,0.00019726,2]
[363031603,1748556640482,-430.0,0.00019726,2]
[363031605,1748556640491,-960.67,0.00019726,2]
[363031608,1748556640502,-852.2,0.00019726,2]
[363031609,1748556640511,-430.0,0.00019726,2]
[363031611,1748556640520,-5639.66,0.00019726,2]
[363031613,1748556640530,-393.04,0.00019726,2]
[363031615,1748556640540,-430.0,0.00019726,2]
[363031617,1748556640549,-1009.95,0.00019726,2]
[363031619,1748556640560,-632.99,0.00019726,2]
[363031621,1748556640569,-8117.07,0.00019726,2]
[363031623,1748556640579,-454.17,0.00019726,2]
[363031625,1748556640588,-452.41,0.00019726,2]
[363031627,1748556640597,-430.0,0.00019726,2]
[363031629,1748556640607,-430.0,0.00019726,2]
[363031631,1748556640616,-2481.17,0.00019726,2]
[363031633,1748556640625,-795.07,0.00019726,2]
[363031635,1748556640634,-430.0,0.00019726,2]
[363031637,1748556640644,-430.0,0.00019726,2]
[363031639,1748556640653,-4582.76,0.00019726,2]
[363031641,1748556640663,-430.0,0.00019726,2]
[363031643,1748556640672,-430.0,0.00019726,2]
[363031645,1748556640681,-1104.94,0.00019726,2]
[363031647,1748556640691,-430.0,0.00019726,2]
[363031649,1748556640700,-430.0,0.00019726,2]
[363031651,1748556640708,-430.0,0.00019726,2]
[363031653,1748556640718,-430.0,0.00019726,2]
[363031655,1748556640727,-1081.58,0.00019726,2]
[363031657,1748556640736,-2052.87,0.00019726,2]
[363031659,1748556640745,-2823.79,0.00019726,2]
[363031661,1748556640755,-430.0,0.00019726,2]
[363031663,1748556640765,-3349.55,0.00019726,2]
[363031665,1748556640775,-533.09,0.00019726,2]
[363031667,1748556640785,-430.0,0.00019726,2]
[363031669,1748556640795,-430.0,0.00019726,2]
[363031671,1748556640805,-430.0,0.00019726,2]
[363031673,1748556640815,-430.0,0.00019726,2]
[363031675,1748556640824,-430.0,0.00019726,2]
[363031677,1748556640835,-430.0,0.00019726,2]
[363031679,1748556640844,-430.0,0.00019726,2]
[363031681,1748556640855,-2060.41,0.00019726,2]
[363031683,1748556640865,-515.92957885,0.00019726,2]
[363031685,1748556640875,-10558.32,0.00019726,2]
[363031687,1748556640884,-430.0,0.00019726,2]
[363031689,1748556640894,-1145.35,0.00019726,2]
[363031691,1748556640903,-2074.11,0.00019726,2]
[363031693,1748556640913,-5225.97,0.00019726,2]
[363031695,1748556640922,-500.0,0.00019726,2]
[363031697,1748556640932,-2140.11,0.00019726,2]
[363031699,1748556640941,-649.73,0.00019726,2]